[Event "Late Titled Tuesday Blitz February 8 2022"]
[White "Kanyamarala, Trisha"]
[Black "Kosakowski, Jakub"]
[WhiteFideId "45004722"]
[BlackFideId "1185080"]
[WhiteElo "2002"]
[BlackElo "2476"]
[Result "0-1"]
[Round "01"]
[TimeControl "180+1"]
[Date "2022.02.09"]
[WhiteClock "0:00:05"]
[BlackClock "0:00:23"]

1. d4 {[%clk 0:02:56]}  d5 {[%clk 0:02:58]} 2. c4 {[%clk 0:02:56]}  c6 {[%clk 0:02:58]} 3. cxd5 {[%clk 0:02:55]}  cxd5 {[%clk 0:02:57]} 4. Bf4 {[%clk 0:02:56]}  Nf6 {[%clk 0:02:52]} 5. Nc3 {[%clk 0:02:56]}  Nc6 {[%clk 0:02:38]} 6. e3 {[%clk 0:02:56]}  Bf5 {[%clk 0:02:36]} 7. Qb3 {[%clk 0:02:50]}  Na5 {[%clk 0:02:36]} 8. Qa4+ {[%clk 0:02:50]}  Bd7 {[%clk 0:02:36]} 9. Qc2 {[%clk 0:02:50]}  e6 {[%clk 0:02:37]} 10. Nf3 {[%clk 0:02:48]}  Rc8 {[%clk 0:02:34]} 11. Ne5 {[%clk 0:02:43]}  Be7 {[%clk 0:02:33]} 12. Bd3 {[%clk 0:02:39]}  O-O {[%clk 0:02:30]} 13. O-O {[%clk 0:02:36]}  Nc6 {[%clk 0:02:25]} 14. a3 {[%clk 0:02:29]}  h6 {[%clk 0:02:15]} 15. Qe2 {[%clk 0:02:21]}  Ne8 {[%clk 0:01:51]} 16. h3 {[%clk 0:02:11]}  Nd6 {[%clk 0:01:50]} 17. Bc2 {[%clk 0:02:00]}  Be8 {[%clk 0:01:45]} 18. Rad1 {[%clk 0:01:47]}  Nxe5 {[%clk 0:01:37]} 19. Bxe5 {[%clk 0:01:46]}  Nc4 {[%clk 0:01:35]} 20. Bb1 {[%clk 0:01:23]}  Nxe5 {[%clk 0:01:30]} 21. dxe5 {[%clk 0:01:24]}  Qa5 {[%clk 0:01:05]} 22. Qd3 {[%clk 0:01:16]}  g6 {[%clk 0:01:05]} 23. e4 {[%clk 0:01:15]}  dxe4 {[%clk 0:00:54]} 24. Qxe4 {[%clk 0:01:03]}  Bxa3 {[%clk 0:00:53]} 25. Qf4 {[%clk 0:00:58]}  Bxb2 {[%clk 0:00:50]} 26. Ne4 {[%clk 0:00:49]}  Bxe5 {[%clk 0:00:50]} 27. Qxh6 {[%clk 0:00:48]}  Bg7 {[%clk 0:00:50]} 28. Qh4 {[%clk 0:00:48]}  Qh5 {[%clk 0:00:40]} 29. Qe7 {[%clk 0:00:41]}  Bc6 {[%clk 0:00:38]} 30. Nd6 {[%clk 0:00:25]}  Rb8 {[%clk 0:00:37]} 31. Be4 {[%clk 0:00:10]}  Bxe4 {[%clk 0:00:30]} 32. Nxe4 {[%clk 0:00:11]}  Rfe8 {[%clk 0:00:31]} 33. Qc7 {[%clk 0:00:06]}  Qe5 {[%clk 0:00:30]} 34. Nd6 {[%clk 0:00:05]}  Rf8 {[%clk 0:00:29]} 35. Rfe1 {[%clk 0:00:05]}  Qf4 {[%clk 0:00:29]} 36. Qe7 {[%clk 0:00:04]}  Bf6 {[%clk 0:00:25]} 37. Qd7 {[%clk 0:00:03]}  Rbd8 {[%clk 0:00:24]} 38. Qc7 {[%clk 0:00:03]}  Be5 {[%clk 0:00:23]} 39. g3 {[%clk 0:00:03]}  Qf6 {[%clk 0:00:23]} 40. Ne4 {[%clk 0:00:02]}  Bxc7 {[%clk 0:00:22]} 41. Nxf6+ {[%clk 0:00:02]}  Kg7 {[%clk 0:00:23]} 42. Ne4 {[%clk 0:00:02]}  Rxd1 {[%clk 0:00:23]} 43. Rxd1 {[%clk 0:00:03]}  Rd8 {[%clk 0:00:24]} 44. Rb1 {[%clk 0:00:03]}  Bb6 {[%clk 0:00:24]} 45. Nc3 {[%clk 0:00:03]}  Rd2 {[%clk 0:00:24]} 46. Na4 {[%clk 0:00:03]}  Bxf2+ {[%clk 0:00:23]} 47. Kf1 {[%clk 0:00:04]}  b6 {[%clk 0:00:22]} 48. Nc3 {[%clk 0:00:03]}  Bc5 {[%clk 0:00:20]} 49. Ne4 {[%clk 0:00:03]}  Rd4 {[%clk 0:00:20]} 50. Nxc5 {[%clk 0:00:02]}  bxc5 {[%clk 0:00:21]} 51. Rc1 {[%clk 0:00:03]}  Rd3 {[%clk 0:00:21]} 52. Rxc5 {[%clk 0:00:03]}  Rxg3 {[%clk 0:00:21]} 53. h4 {[%clk 0:00:03]}  Rg4 {[%clk 0:00:21]} 54. Ra5 {[%clk 0:00:03]}  Rxh4 {[%clk 0:00:21]} 55. Rxa7 {[%clk 0:00:04]}  g5 {[%clk 0:00:21]} 56. Kg2 {[%clk 0:00:04]}  Kg6 {[%clk 0:00:22]} 57. Kg3 {[%clk 0:00:04]}  Rb4 {[%clk 0:00:22]} 58. Rc7 {[%clk 0:00:04]}  Rb3+ {[%clk 0:00:23]} 59. Kg2 {[%clk 0:00:04]}  g4 {[%clk 0:00:23]} 60. Rc8 {[%clk 0:00:04]}  f5 {[%clk 0:00:23]} 61. Rg8+ {[%clk 0:00:05]}  Kf6 {[%clk 0:00:23]} 0-1


[Site "https://www.chess.com"]

[Event "Late Titled Tuesday Blitz February 8 2022"]
[White "Karas, Marek"]
[Black "Zarubitski, Viachaslau"]
[WhiteFideId "14928558"]
[BlackFideId "13509373"]
[WhiteElo "2270"]
[BlackElo "2325"]
[Result "0-1"]
[Round "01"]
[TimeControl "180+1"]
[Date "2022.02.09"]
[WhiteClock "0:00:16"]
[BlackClock "0:00:43"]

1. d3 {[%clk 0:02:58]}  d6 {[%clk 0:02:58]} 2. Nf3 {[%clk 0:02:59]}  g6 {[%clk 0:02:57]} 3. c4 {[%clk 0:02:59]}  Bg7 {[%clk 0:02:57]} 4. Nc3 {[%clk 0:03:00]}  Nf6 {[%clk 0:02:57]} 5. g3 {[%clk 0:02:58]}  c5 {[%clk 0:02:57]} 6. Bg2 {[%clk 0:02:59]}  Nc6 {[%clk 0:02:58]} 7. O-O {[%clk 0:03:00]}  O-O {[%clk 0:02:58]} 8. Qd2 {[%clk 0:02:59]}  Rb8 {[%clk 0:02:54]} 9. b3 {[%clk 0:02:59]}  a6 {[%clk 0:02:53]} 10. a4 {[%clk 0:02:59]}  Bd7 {[%clk 0:02:49]} 11. Bb2 {[%clk 0:02:59]}  Nb4 {[%clk 0:02:43]} 12. d4 {[%clk 0:02:49]}  e6 {[%clk 0:02:32]} 13. dxc5 {[%clk 0:02:43]}  dxc5 {[%clk 0:02:32]} 14. Ne5 {[%clk 0:02:41]}  Qc7 {[%clk 0:02:27]} 15. Nxd7 {[%clk 0:02:37]}  Nxd7 {[%clk 0:02:27]} 16. Rfd1 {[%clk 0:02:35]}  Rfd8 {[%clk 0:02:25]} 17. Qd6 {[%clk 0:02:32]}  Qa5 {[%clk 0:02:13]} 18. Qf4 {[%clk 0:02:09]}  Nc2 {[%clk 0:01:37]} 19. Rac1 {[%clk 0:02:04]}  Nd4 {[%clk 0:01:33]} 20. Qe4 {[%clk 0:01:35]}  Nf6 {[%clk 0:01:26]} 21. Qe3 {[%clk 0:01:19]}  Nxb3 {[%clk 0:01:15]} 22. Rxd8+ {[%clk 0:01:18]}  Rxd8 {[%clk 0:01:14]} 23. Rd1 {[%clk 0:01:18]}  Nd4 {[%clk 0:01:07]} 24. h3 {[%clk 0:01:00]}  h5 {[%clk 0:01:03]} 25. Kh2 {[%clk 0:00:59]}  Kh7 {[%clk 0:01:03]} 26. Ba3 {[%clk 0:00:55]}  b5 {[%clk 0:00:53]} 27. Bxc5 {[%clk 0:00:44]}  Nf5 {[%clk 0:00:53]} 28. Qc1 {[%clk 0:00:32]}  Rxd1 {[%clk 0:00:49]} 29. Nxd1 {[%clk 0:00:33]}  bxa4 {[%clk 0:00:48]} 30. Ba3 {[%clk 0:00:31]}  Nd4 {[%clk 0:00:45]} 31. e3 {[%clk 0:00:22]}  Ne2 {[%clk 0:00:43]} 32. Qc2 {[%clk 0:00:17]}  Qe1 {[%clk 0:00:43]} 33. c5 {[%clk 0:00:16]}  Qg1# {[%clk 0:00:43]} 0-1


[Site "https://www.chess.com"]

[Event "Late Titled Tuesday Blitz February 8 2022"]
[White "Karttunen, Mika"]
[Black "Moore, Nicholas"]
[WhiteFideId "502081"]
[BlackFideId "4303709"]
[WhiteElo "2343"]
[BlackElo "2279"]
[Result "1-0"]
[Round "01"]
[TimeControl "180+1"]
[Date "2022.02.09"]
[WhiteClock "0:01:30"]
[BlackClock "0:01:31"]

1. e4 {[%clk 0:03:00]}  c5 {[%clk 0:03:00]} 2. Nf3 {[%clk 0:03:00]}  e6 {[%clk 0:03:00]} 3. d4 {[%clk 0:03:00]}  cxd4 {[%clk 0:03:01]} 4. Nxd4 {[%clk 0:03:00]}  Nc6 {[%clk 0:03:02]} 5. Nc3 {[%clk 0:03:00]}  Qc7 {[%clk 0:03:02]} 6. Be3 {[%clk 0:03:00]}  a6 {[%clk 0:03:03]} 7. Qf3 {[%clk 0:03:00]}  Nf6 {[%clk 0:03:03]} 8. O-O-O {[%clk 0:03:00]}  Ne5 {[%clk 0:03:03]} 9. Qg3 {[%clk 0:03:00]}  b5 {[%clk 0:03:03]} 10. f4 {[%clk 0:02:50]}  Neg4 {[%clk 0:03:02]} 11. e5 {[%clk 0:02:41]}  Nxe3 {[%clk 0:02:59]} 12. Qxe3 {[%clk 0:02:40]}  b4 {[%clk 0:02:59]} 13. Ncb5 {[%clk 0:02:03]}  axb5 {[%clk 0:02:53]} 14. Nxb5 {[%clk 0:02:04]}  Qa5 {[%clk 0:02:31]} 15. exf6 {[%clk 0:02:04]}  d5 {[%clk 0:02:28]} 16. Rxd5 {[%clk 0:02:02]}  Bd7 {[%clk 0:02:15]} 17. fxg7 {[%clk 0:01:38]}  Bxg7 {[%clk 0:01:38]} 18. Nd6+ {[%clk 0:01:37]}  Ke7 {[%clk 0:01:39]} 19. Nf5+ {[%clk 0:01:33]}  Kf8 {[%clk 0:01:30]} 20. Rxa5 {[%clk 0:01:30]}  Rxa5 {[%clk 0:01:31]} 21. Nxg7 {[%clk 0:01:30]}  Kxg7 {[%clk 0:01:31]} 22. Qd4+ {[%clk 0:01:30]} 1-0


[Site "https://www.chess.com"]

[Event "Late Titled Tuesday Blitz February 8 2022"]
[White "Kobalia, Mikhail"]
[Black "Urbina Perez, Juan Antonio"]
[WhiteFideId "4119150"]
[BlackFideId "2217368"]
[WhiteElo "2667"]
[BlackElo "2192"]
[Result "1-0"]
[Round "01"]
[TimeControl "180+1"]
[Date "2022.02.09"]
[WhiteClock "0:01:19"]
[BlackClock "0:00:08"]

1. e4 {[%clk 0:02:59]}  c6 {[%clk 0:02:59]} 2. d4 {[%clk 0:02:58]}  d5 {[%clk 0:02:59]} 3. exd5 {[%clk 0:02:58]}  cxd5 {[%clk 0:03:00]} 4. Bd3 {[%clk 0:02:59]}  Nc6 {[%clk 0:03:00]} 5. c3 {[%clk 0:02:58]}  Nf6 {[%clk 0:03:01]} 6. h3 {[%clk 0:02:58]}  g6 {[%clk 0:03:01]} 7. Nf3 {[%clk 0:02:57]}  Bg7 {[%clk 0:03:01]} 8. Bf4 {[%clk 0:02:55]}  O-O {[%clk 0:03:00]} 9. Nbd2 {[%clk 0:02:55]}  Bf5 {[%clk 0:02:59]} 10. Bxf5 {[%clk 0:02:55]}  gxf5 {[%clk 0:03:00]} 11. g4 {[%clk 0:02:54]}  fxg4 {[%clk 0:02:54]} 12. hxg4 {[%clk 0:02:54]}  Ne4 {[%clk 0:02:37]} 13. Qc2 {[%clk 0:02:49]}  f5 {[%clk 0:02:25]} 14. gxf5 {[%clk 0:02:49]}  Rxf5 {[%clk 0:02:23]} 15. Nxe4 {[%clk 0:02:48]}  dxe4 {[%clk 0:01:46]} 16. Qxe4 {[%clk 0:02:47]}  Qd5 {[%clk 0:01:41]} 17. Qxd5+ {[%clk 0:02:39]}  Rxd5 {[%clk 0:01:42]} 18. Rg1 {[%clk 0:02:11]}  Kh8 {[%clk 0:01:31]} 19. Ke2 {[%clk 0:02:04]}  Rf8 {[%clk 0:01:27]} 20. Be3 {[%clk 0:02:03]}  Rdf5 {[%clk 0:01:25]} 21. Ng5 {[%clk 0:02:00]}  e5 {[%clk 0:01:18]} 22. Ne6 {[%clk 0:01:58]}  R8f7 {[%clk 0:01:18]} 23. d5 {[%clk 0:01:52]}  Ne7 {[%clk 0:01:07]} 24. d6 {[%clk 0:01:52]}  Nc6 {[%clk 0:00:50]} 25. Rad1 {[%clk 0:01:50]}  Bf6 {[%clk 0:00:36]} 26. d7 {[%clk 0:01:46]}  Nd8 {[%clk 0:00:31]} 27. Nxd8 {[%clk 0:01:32]}  Bxd8 {[%clk 0:00:32]} 28. Bxa7 {[%clk 0:01:31]}  Re7 {[%clk 0:00:17]} 29. Bb6 {[%clk 0:01:20]}  Rf8 {[%clk 0:00:08]} 30. Bc5 {[%clk 0:01:19]} 1-0


[Site "https://www.chess.com"]

[Event "Late Titled Tuesday Blitz February 8 2022"]
[White "Kopylov, Alexander A."]
[Black "Bambino Filho, Antonio Carlos"]
[WhiteFideId "4164857"]
[BlackFideId "2113163"]
[WhiteElo "2436"]
[BlackElo "2442"]
[Result "1-0"]
[Round "01"]
[TimeControl "180+1"]
[Date "2022.02.09"]
[WhiteClock "0:01:30"]
[BlackClock "0:00:45"]

1. e4 {[%clk 0:02:59]}  c5 {[%clk 0:02:59]} 2. Nf3 {[%clk 0:02:59]}  d6 {[%clk 0:03:00]} 3. d4 {[%clk 0:02:59]}  cxd4 {[%clk 0:03:00]} 4. Nxd4 {[%clk 0:02:59]}  Nf6 {[%clk 0:03:01]} 5. f3 {[%clk 0:03:00]}  e5 {[%clk 0:02:53]} 6. Nb3 {[%clk 0:02:59]}  d5 {[%clk 0:02:50]} 7. exd5 {[%clk 0:02:59]}  Qxd5 {[%clk 0:02:45]} 8. Nc3 {[%clk 0:02:59]}  Qxd1+ {[%clk 0:02:44]} 9. Nxd1 {[%clk 0:03:00]}  Nc6 {[%clk 0:02:44]} 10. Bg5 {[%clk 0:02:58]}  Be7 {[%clk 0:02:42]} 11. Ne3 {[%clk 0:02:58]}  Be6 {[%clk 0:02:41]} 12. Bc4 {[%clk 0:02:55]}  Bxc4 {[%clk 0:02:32]} 13. Nxc4 {[%clk 0:02:55]}  O-O-O {[%clk 0:02:25]} 14. c3 {[%clk 0:02:51]}  h6 {[%clk 0:02:24]} 15. Bh4 {[%clk 0:02:50]}  g5 {[%clk 0:02:20]} 16. Bf2 {[%clk 0:02:50]}  e4 {[%clk 0:02:12]} 17. Nd4 {[%clk 0:02:39]}  exf3 {[%clk 0:02:00]} 18. Nxc6 {[%clk 0:02:35]}  bxc6 {[%clk 0:02:01]} 19. gxf3 {[%clk 0:02:35]}  Nd5 {[%clk 0:01:38]} 20. O-O-O {[%clk 0:02:27]}  Kb7 {[%clk 0:01:23]} 21. Rhe1 {[%clk 0:02:19]}  Bf6 {[%clk 0:01:16]} 22. Na5+ {[%clk 0:02:15]}  Kc7 {[%clk 0:01:16]} 23. Bg3+ {[%clk 0:02:15]}  Nf4 {[%clk 0:01:16]} 24. Re4 {[%clk 0:02:06]}  Rd5 {[%clk 0:01:09]} 25. Rxd5 {[%clk 0:01:47]}  cxd5 {[%clk 0:01:10]} 26. Rb4 {[%clk 0:01:46]}  Be5 {[%clk 0:01:06]} 27. Rb7+ {[%clk 0:01:44]}  Kd6 {[%clk 0:01:06]} 28. Kd2 {[%clk 0:01:35]}  f5 {[%clk 0:00:56]} 29. Rxa7 {[%clk 0:01:35]}  h5 {[%clk 0:00:57]} 30. Ra6+ {[%clk 0:01:34]}  Kd7 {[%clk 0:00:53]} 31. Nc6 {[%clk 0:01:34]}  Bd6 {[%clk 0:00:50]} 32. Nd4 {[%clk 0:01:35]}  h4 {[%clk 0:00:48]} 33. Ra7+ {[%clk 0:01:34]}  Kc8 {[%clk 0:00:44]} 34. Ra8+ {[%clk 0:01:34]}  Bb8 {[%clk 0:00:44]} 35. Bxf4 {[%clk 0:01:33]}  gxf4 {[%clk 0:00:45]} 36. Nc6 {[%clk 0:01:30]} 1-0


[Site "https://www.chess.com"]

[Event "Late Titled Tuesday Blitz February 8 2022"]
[White "Kubatko, Ivan"]
[Black "Sydoryka, Vladyslav"]
[WhiteFideId "24111473"]
[BlackFideId "14145928"]
[WhiteElo "2285"]
[BlackElo "2265"]
[Result "1-0"]
[Round "01"]
[TimeControl "180+1"]
[Date "2022.02.09"]
[WhiteClock "0:00:03"]
[BlackClock "0:00:01"]

1. e4 {[%clk 0:02:58]}  d5 {[%clk 0:02:58]} 2. exd5 {[%clk 0:02:54]}  Qxd5 {[%clk 0:02:59]} 3. Nc3 {[%clk 0:02:53]}  Qd6 {[%clk 0:02:59]} 4. g3 {[%clk 0:02:49]}  Nf6 {[%clk 0:02:57]} 5. Bg2 {[%clk 0:02:49]}  c5 {[%clk 0:02:34]} 6. Nf3 {[%clk 0:02:44]}  Nc6 {[%clk 0:02:26]} 7. O-O {[%clk 0:02:19]}  Bf5 {[%clk 0:02:17]} 8. d3 {[%clk 0:02:13]}  e6 {[%clk 0:02:11]} 9. Bf4 {[%clk 0:02:11]}  Qd8 {[%clk 0:02:10]} 10. Re1 {[%clk 0:02:03]}  Bd6 {[%clk 0:02:09]} 11. Qd2 {[%clk 0:01:56]}  O-O {[%clk 0:02:07]} 12. h3 {[%clk 0:01:53]}  Bg6 {[%clk 0:02:02]} 13. Nh4 {[%clk 0:01:36]}  Rc8 {[%clk 0:01:48]} 14. Nxg6 {[%clk 0:01:34]}  hxg6 {[%clk 0:01:42]} 15. a3 {[%clk 0:01:33]}  b6 {[%clk 0:01:39]} 16. Bxd6 {[%clk 0:01:31]}  Qxd6 {[%clk 0:01:40]} 17. Ne4 {[%clk 0:01:32]}  Nxe4 {[%clk 0:01:39]} 18. Bxe4 {[%clk 0:01:31]}  Rfd8 {[%clk 0:01:38]} 19. Rad1 {[%clk 0:01:28]}  Nd4 {[%clk 0:01:36]} 20. c3 {[%clk 0:01:25]}  Nf5 {[%clk 0:01:33]} 21. Qe2 {[%clk 0:01:17]}  Rc7 {[%clk 0:01:29]} 22. Rd2 {[%clk 0:01:15]}  Rcd7 {[%clk 0:01:28]} 23. Red1 {[%clk 0:01:15]}  Qc7 {[%clk 0:01:28]} 24. Bg2 {[%clk 0:01:06]}  Ne7 {[%clk 0:01:03]} 25. Qe4 {[%clk 0:01:02]}  Nf5 {[%clk 0:01:00]} 26. Kf1 {[%clk 0:00:56]}  a6 {[%clk 0:00:54]} 27. Kg1 {[%clk 0:00:47]}  b5 {[%clk 0:00:52]} 28. Kf1 {[%clk 0:00:47]}  Qa5 {[%clk 0:00:45]} 29. b4 {[%clk 0:00:45]}  Qxa3 {[%clk 0:00:43]} 30. bxc5 {[%clk 0:00:45]}  Qxc5 {[%clk 0:00:42]} 31. Ra2 {[%clk 0:00:24]}  Qxc3 {[%clk 0:00:38]} 32. Rxa6 {[%clk 0:00:24]}  Rxd3 {[%clk 0:00:33]} 33. Rxd3 {[%clk 0:00:22]}  Rxd3 {[%clk 0:00:34]} 34. Ra8+ {[%clk 0:00:18]}  Kh7 {[%clk 0:00:34]} 35. Kg1 {[%clk 0:00:19]}  Rd4 {[%clk 0:00:29]} 36. Qe2 {[%clk 0:00:13]}  b4 {[%clk 0:00:27]} 37. Kh2 {[%clk 0:00:11]}  b3 {[%clk 0:00:24]} 38. Rb8 {[%clk 0:00:11]}  Rb4 {[%clk 0:00:24]} 39. Rxb4 {[%clk 0:00:08]}  Qxb4 {[%clk 0:00:25]} 40. g4 {[%clk 0:00:06]}  Nh4 {[%clk 0:00:21]} 41. Be4 {[%clk 0:00:06]}  b2 {[%clk 0:00:20]} 42. Kg3 {[%clk 0:00:06]}  b1=Q {[%clk 0:00:02]} 43. Bxb1 {[%clk 0:00:05]}  Qxb1 {[%clk 0:00:03]} 44. Kxh4 {[%clk 0:00:06]}  Qb8 {[%clk 0:00:03]} 45. Qf3 {[%clk 0:00:06]}  Kh6 {[%clk 0:00:03]} 46. g5+ {[%clk 0:00:04]}  Kh7 {[%clk 0:00:03]} 47. Qxf7 {[%clk 0:00:04]}  Qh2 {[%clk 0:00:03]} 48. Qxe6 {[%clk 0:00:04]}  Qf4+ {[%clk 0:00:02]} 49. Qg4 {[%clk 0:00:03]}  Qxf2+ {[%clk 0:00:03]} 50. Qg3 {[%clk 0:00:03]}  Qd4+ {[%clk 0:00:03]} 51. Qg4 {[%clk 0:00:04]}  Qe5 {[%clk 0:00:04]} 52. Qg3 {[%clk 0:00:03]}  Qe6 {[%clk 0:00:03]} 53. Qg4 {[%clk 0:00:03]}  Qe7 {[%clk 0:00:04]} 54. Qf4 {[%clk 0:00:03]}  Qd8 {[%clk 0:00:04]} 55. Kg4 {[%clk 0:00:04]}  Qc8+ {[%clk 0:00:04]} 56. Kg3 {[%clk 0:00:04]}  Kg8 {[%clk 0:00:04]} 57. h4 {[%clk 0:00:04]}  Qc3+ {[%clk 0:00:04]} 58. Qf3 {[%clk 0:00:04]}  Qe5+ {[%clk 0:00:04]} 59. Qf4 {[%clk 0:00:04]}  Qb2 {[%clk 0:00:03]} 60. Kg4 {[%clk 0:00:04]}  Qg2+ {[%clk 0:00:02]} 61. Qg3 {[%clk 0:00:05]}  Qe4+ {[%clk 0:00:02]} 62. Qf4 {[%clk 0:00:05]}  Qe6+ {[%clk 0:00:03]} 63. Kg3 {[%clk 0:00:06]}  Qe1+ {[%clk 0:00:03]} 64. Qf2 {[%clk 0:00:05]}  Qh1 {[%clk 0:00:03]} 65. Qg2 {[%clk 0:00:05]}  Qa1 {[%clk 0:00:03]} 66. Qd5+ {[%clk 0:00:05]}  Kh7 {[%clk 0:00:03]} 67. Qe4 {[%clk 0:00:05]}  Qg1+ {[%clk 0:00:02]} 68. Qg2 {[%clk 0:00:04]}  Qd4 {[%clk 0:00:02]} 69. Qf3 {[%clk 0:00:04]}  Kg8 {[%clk 0:00:03]} 70. Qf4 {[%clk 0:00:04]}  Qd5 {[%clk 0:00:02]} 71. Qb8+ {[%clk 0:00:03]}  Kf7 {[%clk 0:00:02]} 72. Qf4+ {[%clk 0:00:04]}  Ke7 {[%clk 0:00:02]} 73. Qg4 {[%clk 0:00:04]}  Qe5+ {[%clk 0:00:01]} 74. Kf3 {[%clk 0:00:05]}  Qc3+ {[%clk 0:00:02]} 75. Kf4 {[%clk 0:00:05]}  Qd4+ {[%clk 0:00:02]} 76. Kf3 {[%clk 0:00:05]}  Qd3+ {[%clk 0:00:02]} 77. Kg2 {[%clk 0:00:05]}  Kd6 {[%clk 0:00:03]} 78. Qf4+ {[%clk 0:00:05]}  Ke6 {[%clk 0:00:02]} 79. Qg4+ {[%clk 0:00:05]}  Qf5 {[%clk 0:00:02]} 80. Kg3 {[%clk 0:00:06]}  Ke5 {[%clk 0:00:02]} 81. Qe2+ {[%clk 0:00:05]}  Qe4 {[%clk 0:00:02]} 82. Qb5+ {[%clk 0:00:05]}  Qd5 {[%clk 0:00:01]} 83. Qe8+ {[%clk 0:00:05]}  Qe6 {[%clk 0:00:01]} 84. Qb8+ {[%clk 0:00:04]}  Kf5 {[%clk 0:00:01]} 85. Qf4# {[%clk 0:00:03]} 1-0


[Site "https://www.chess.com"]

[Event "Late Titled Tuesday Blitz February 8 2022"]
[White "Kukula, Pawel"]
[Black "Pakleza, Zbigniew"]
[WhiteFideId "1115081"]
[BlackFideId "1119290"]
[WhiteElo "2203"]
[BlackElo "2467"]
[Result "0-1"]
[Round "01"]
[TimeControl "180+1"]
[Date "2022.02.09"]
[WhiteClock "0:00:06"]
[BlackClock "0:00:03"]

1. d4 {[%clk 0:02:57]}  d6 {[%clk 0:03:00]} 2. c4 {[%clk 0:02:57]}  e5 {[%clk 0:03:00]} 3. Nc3 {[%clk 0:02:56]}  exd4 {[%clk 0:03:00]} 4. Qxd4 {[%clk 0:02:56]}  Nc6 {[%clk 0:03:01]} 5. Qd2 {[%clk 0:02:53]}  Nf6 {[%clk 0:03:01]} 6. Nf3 {[%clk 0:02:53]}  Be7 {[%clk 0:02:57]} 7. b3 {[%clk 0:02:53]}  a5 {[%clk 0:02:57]} 8. a3 {[%clk 0:02:51]}  Be6 {[%clk 0:02:54]} 9. Bb2 {[%clk 0:02:51]}  a4 {[%clk 0:02:53]} 10. Nxa4 {[%clk 0:02:37]}  Bxc4 {[%clk 0:02:39]} 11. bxc4 {[%clk 0:02:37]}  Rxa4 {[%clk 0:02:38]} 12. e3 {[%clk 0:02:37]}  O-O {[%clk 0:02:30]} 13. Be2 {[%clk 0:02:34]}  Ne4 {[%clk 0:02:17]} 14. Qc2 {[%clk 0:02:34]}  Nc5 {[%clk 0:02:17]} 15. O-O {[%clk 0:02:26]}  Bf6 {[%clk 0:02:15]} 16. Nd4 {[%clk 0:02:23]}  Ra6 {[%clk 0:02:00]} 17. Rfd1 {[%clk 0:02:17]}  Ne5 {[%clk 0:01:47]} 18. f4 {[%clk 0:02:10]}  Ned7 {[%clk 0:01:35]} 19. Bf3 {[%clk 0:01:55]}  Re8 {[%clk 0:01:34]} 20. e4 {[%clk 0:01:49]}  Qc8 {[%clk 0:00:48]} 21. Rab1 {[%clk 0:01:47]}  Nb6 {[%clk 0:00:44]} 22. h3 {[%clk 0:01:34]}  Ra4 {[%clk 0:00:40]} 23. e5 {[%clk 0:01:01]}  dxe5 {[%clk 0:00:36]} 24. fxe5 {[%clk 0:01:01]}  Bxe5 {[%clk 0:00:32]} 25. Bg4 {[%clk 0:00:47]}  Qb8 {[%clk 0:00:26]} 26. Qf5 {[%clk 0:00:42]}  Nxc4 {[%clk 0:00:21]} 27. Bc3 {[%clk 0:00:38]}  Ne3 {[%clk 0:00:20]} 28. Qh5 {[%clk 0:00:25]}  Nxd1 {[%clk 0:00:19]} 29. Rxd1 {[%clk 0:00:26]}  g6 {[%clk 0:00:17]} 30. Qh6 {[%clk 0:00:24]}  Ne4 {[%clk 0:00:14]} 31. Bb2 {[%clk 0:00:20]}  Qa7 {[%clk 0:00:12]} 32. Qe3 {[%clk 0:00:18]}  Bg7 {[%clk 0:00:10]} 33. Kh1 {[%clk 0:00:16]}  f5 {[%clk 0:00:10]} 34. Bf3 {[%clk 0:00:16]}  Kh8 {[%clk 0:00:10]} 35. Bxe4 {[%clk 0:00:15]}  Rxe4 {[%clk 0:00:10]} 36. Qb3 {[%clk 0:00:09]}  Bxd4 {[%clk 0:00:08]} 37. Qf7 {[%clk 0:00:08]}  Qb8 {[%clk 0:00:05]} 38. Bxd4+ {[%clk 0:00:08]}  Raxd4 {[%clk 0:00:06]} 39. Rxd4 {[%clk 0:00:08]}  Re1+ {[%clk 0:00:03]} 40. Kh2 {[%clk 0:00:08]}  c5+ {[%clk 0:00:03]} 41. g3 {[%clk 0:00:07]}  cxd4 {[%clk 0:00:04]} 42. Qf6+ {[%clk 0:00:07]}  Kg8 {[%clk 0:00:05]} 43. Qe6+ {[%clk 0:00:06]}  Rxe6 {[%clk 0:00:03]} 0-1


[Site "https://www.chess.com"]

[Event "Late Titled Tuesday Blitz February 8 2022"]
[White "Li, Ben"]
[Black "Jaskolka, Tomasz"]
[WhiteFideId "2089980"]
[BlackFideId "1170791"]
[WhiteElo "2267"]
[BlackElo "2054"]
[Result "1-0"]
[Round "01"]
[TimeControl "180+1"]
[Date "2022.02.09"]
[WhiteClock "0:00:41"]
[BlackClock "0:00:01"]

1. d4 {[%clk 0:03:00]}  e6 {[%clk 0:02:55]} 2. c4 {[%clk 0:03:00]}  f5 {[%clk 0:02:55]} 3. g3 {[%clk 0:03:00]}  Nf6 {[%clk 0:02:54]} 4. Bg2 {[%clk 0:03:00]}  Be7 {[%clk 0:02:55]} 5. Nh3 {[%clk 0:03:00]}  d6 {[%clk 0:02:54]} 6. O-O {[%clk 0:03:00]}  O-O {[%clk 0:02:54]} 7. b3 {[%clk 0:03:01]}  e5 {[%clk 0:02:54]} 8. Bb2 {[%clk 0:03:01]}  Nc6 {[%clk 0:02:48]} 9. Bxc6 {[%clk 0:02:49]}  bxc6 {[%clk 0:02:48]} 10. dxe5 {[%clk 0:02:49]}  Ng4 {[%clk 0:02:27]} 11. exd6 {[%clk 0:02:46]}  cxd6 {[%clk 0:02:27]} 12. Nf4 {[%clk 0:02:41]}  Bf6 {[%clk 0:02:17]} 13. Bxf6 {[%clk 0:02:38]}  Qxf6 {[%clk 0:02:17]} 14. Nd2 {[%clk 0:02:39]}  g5 {[%clk 0:01:38]} 15. Ng2 {[%clk 0:02:35]}  Qh6 {[%clk 0:01:34]} 16. Nf3 {[%clk 0:02:32]}  Bb7 {[%clk 0:01:32]} 17. c5 {[%clk 0:02:11]}  Rad8 {[%clk 0:01:25]} 18. Qc1 {[%clk 0:01:58]}  f4 {[%clk 0:01:24]} 19. Rd1 {[%clk 0:01:57]}  fxg3 {[%clk 0:01:06]} 20. Qc4+ {[%clk 0:01:57]}  d5 {[%clk 0:00:58]} 21. Qxg4 {[%clk 0:01:56]}  Rxf3 {[%clk 0:00:53]} 22. hxg3 {[%clk 0:01:32]}  Rf6 {[%clk 0:00:53]} 23. Rd3 {[%clk 0:01:10]}  Bc8 {[%clk 0:00:49]} 24. Qd4 {[%clk 0:01:09]}  Rdf8 {[%clk 0:00:38]} 25. Rf3 {[%clk 0:01:04]}  Rxf3 {[%clk 0:00:38]} 26. exf3 {[%clk 0:01:05]}  Rxf3 {[%clk 0:00:38]} 27. Re1 {[%clk 0:01:05]}  Rf8 {[%clk 0:00:30]} 28. Re7 {[%clk 0:01:03]}  Qf6 {[%clk 0:00:27]} 29. Qxf6 {[%clk 0:00:59]}  Rxf6 {[%clk 0:00:28]} 30. Ne3 {[%clk 0:00:59]}  h6 {[%clk 0:00:27]} 31. Rxa7 {[%clk 0:00:58]}  Be6 {[%clk 0:00:23]} 32. Nc2 {[%clk 0:00:56]}  Bf7 {[%clk 0:00:17]} 33. Nd4 {[%clk 0:00:56]}  h5 {[%clk 0:00:17]} 34. a4 {[%clk 0:00:55]}  h4 {[%clk 0:00:17]} 35. a5 {[%clk 0:00:54]}  Bg6 {[%clk 0:00:11]} 36. a6 {[%clk 0:00:52]}  Be4 {[%clk 0:00:05]} 37. Rc7 {[%clk 0:00:52]}  Rf8 {[%clk 0:00:03]} 38. a7 {[%clk 0:00:51]}  h3 {[%clk 0:00:04]} 39. f3 {[%clk 0:00:49]}  Bxf3 {[%clk 0:00:02]} 40. Nxf3 {[%clk 0:00:49]}  g4 {[%clk 0:00:02]} 41. Nd4 {[%clk 0:00:46]}  Ra8 {[%clk 0:00:02]} 42. Nxc6 {[%clk 0:00:45]}  d4 {[%clk 0:00:02]} 43. Nxd4 {[%clk 0:00:45]}  Kh8 {[%clk 0:00:02]} 44. b4 {[%clk 0:00:45]}  Re8 {[%clk 0:00:01]} 45. Re7 {[%clk 0:00:42]}  Rd8 {[%clk 0:00:01]} 46. b5 {[%clk 0:00:41]} 1-0


[Site "https://www.chess.com"]